{"text_format":"3","workbook":"xlsx","n_sheets":10,"sheets":["Gauteng","Komati Volumes","Lethabo volumes","Hendrina volumes","Duvha response","Kendal ","Kusile","Arnot","Medupi","Matla"],"not_rendered":{"defined_names":1},"read":"whole","date_system":"1900"}

{"sheet":"Gauteng","index":0,"n_rows":96,"n_cols":12,"rows_kept":96,"merged":[[1,2,2,11],[3,2,3,11],[4,8,4,10],[5,8,5,10],[28,11,33,11],[36,2,36,11],[38,2,38,11],[73,11,75,11],[83,11,85,11],[87,2,87,11],[88,2,88,11],[95,3,96,11]]}
[]
[null,null,"1. PRICING SCHEDULE FOR INDUSTRIAL GASES AND MEDICAL GASES"]
[]
[null,null,"Gas requirements for : 56 Months Contract"]
[{"$nulls":8},"Province"]
[{"$nulls":8},"Gauteng"]
[null,null,"Item No.","Item Name","Molecular Formula","Purity (% composition of gas components)","Cyl Capacity ","Quantity (Year 1) ","Product price per KG","Cylinder price per KG","Total price per KG","Comments/ Calculation Explanations"]
[null,null,1.1,"Air ","N2+O2","Air: 19-23% Oxygen, Balance - Nitrogen","9.8kg",5,null,null,{"$f":"I8+J8","v":0}]
[null,null,1.2,"Air, Sythetic","N2+O2","Air: 21-22.5% Oxygen, Balance - Nitrogen","9.8kg",95,null,null,{"$f":"I9+J9","v":0}]
[null,null,1.3,"Acetylene","C2H2",{"v":0.98,"d":"98.00%"},"8.6kg",1572,null,null,0]
[null,null,1.4,"Ammonia","NH3",{"v":0.997,"d":"99.70%"},"480kg",50,null,null,0]
[{"$nulls":3},"Ammonia","NH3",{"v":0.997,"d":"99.70%"},"61kg",40,null,null,0]
[null,null,1.5,"Argon","Ar",{"v":0.9999,"d":"99.99%"},"16.9kg",1620,null,null,0]
[null,null,1.6,"Carbon Dioxide Liquefied Gas","CO2",{"v":0.99,"d":"99.00%"},"Supplier to Specify ( no size bcoz in litres) Air products n Air lied",5346,null,null,0]
[null,null,1.7,"Carbon Dioxide","CO2",{"v":0.99,"d":"99.00%"},"31.5kg",3100,null,null,0]
[null,null,1.8,"CARBON DIOXIDE DIP/TUBE","CO2",null,"31.5kg",1300,null,null,0]
[{"$nulls":3},"Carbon dioxide and Carbon monoxide mixture","CO2 + CO","40% CO2\n60% CO",{"$nulls":4},0]
[null,null,1.9,"Chlorine","CI",{"v":0.995,"d":"99.50%"},"Supplier to Specify",350,null,null,0]
[null,null,1.1,"Helium ","He",{"v":0.99,"d":"99.00%"},"1.5kg",330,null,null,0]
[null,null,1.11,"Hydrogen","H2",{"v":0.995,"d":"99.50%"},"0.62kg",350,null,null,0]
[null,null,1.12,"H2 10 CYLINDER TROLLEY","H2",{"v":0.995,"d":"99.50%"},null,120,null,null,0]
[null,null,1.13,"Nitrous Oxide","NO","Supplier to Specify","31.3kg",170,null,null,0]
[null,null,1.14,"Nitrogen","N2 ",{"v":0.99997,"d":"99.997%"},"11kg",4900,null,null,0]
[null,null,1.15,"Nitrogen ","N2",{"v":0.995,"d":"99.50%"},"148kg M/T (Milli tanker)",115000,null,null,0]
[null,null,1.16,"Nitrogen Tank","N2",{"v":0.995,"d":"99.50%"},"Bulk-M/T",42000,null,null,0]
[null,null,1.17,"Oxygen ","O2",{"v":0.995,"d":"99.50%"},"11.5kg",659,null,null,0]
[null,null,1.18,"Oxygen-Medical","O2",{"v":0.995,"d":"99.50%"},"11.2kg",590,null,null,0]
[null,null,1.19,"Mixture of Nitrogen, Nitric Oxide and Carbon Monoxide","N2, NO and CO","NO: 140ppm\nCO: 100ppm\nN2: Balance\n","10L",120,null,null,0]
[null,null,1.2,"Propane",null,null,"45kg",50,null,null,0]
[null,null,1.21,"Propane",null,null,"Tank",225000,null,null,0]
[null,null,1.22,"PALLET,MATERIAL HANDLING",null,"Supplier to Specify","Supplier to Specify (Nitrogen & ",5000,null,null,0]
[null,null,1.23,"REFRIGERANT:R22;FREON",null,null,"65kg",30,null,null,0]
[null,null,1.24,"ARGON/CARBON",null,null,17.8,10,null,null,0]
[null,null,1.25,"C02 EQUIPMENT RENTAL",null,null,"PACKAGE CONSISTS OF 12 CYLINDERS, FRAME AND MANIFOLD PACK",600,null,null,0]
[null,null,1.26,"Pyroshield ",null,"Ar: 50%\n N2:50%\n","Supplier to Specify",500,null,null,0]
[]
[null,null,"2. PRICING SCHEDULE FOR SPECIAL GASES"]
[]
[null,null,"Gas requirements for : 56 Months Contract"]
[null,null,"Item No.","Item Name","Molecular Formula","Purity (% composition of gas components)","Cyl Capacity ","Quantity (Year 1) ","Product price per KG","Cylinder price per KG","Total price per KG","Comments/ Calculation Explanations"]
[null,null,2.1,"Mixture of Nitrogen and Carbon Monoxide","N2 & CO","CO: 500 ppm\n N2:Balance\n","10L",186,null,null,{"$f":"I41+J41","v":0}]
[null,null,2.2,"Mixture of Nitrogen and Carbon Monoxide","N2 & CO","CO: 2000 ppm \nN2 :Balance\n","10L",6,null,null,{"$f":"I42+J42","v":0}]
[null,null,2.3,"Mixture of Nitrogen and Carbon Monoxide","N2 & CO","CO: 25%\nN2: Balance\n","50L",14,null,null,0]
[null,null,2.4,"Mixture of Nitrogen, Oxygen, Nitrogen Monoxide and Sulphur Dioxide","N2, O2, NO, & SO2","O2 :4.5%\nNO: 4000ppm,  SO2: 6000ppm \nN2: Balance\n","50L",12,null,null,0]
[null,null,2.5,"Mixture of Nitrogen and Dinitrogen Oxide (Nitrous Oxide)","N2 & N2O","N2O:500 ppm \nN2: Balance\n","10L",12,null,null,0]
[null,null,2.6,"Mixture of Nitrogen and Nitric Oxide","N2 & NO","NO :4000 ppm\nN2 :balance\n","10L",8,null,null,0]
[null,null,2.7,"Mixture of Nitrogen and Nitric Oxide","N2 & NO","NO :500 ppm \nN2 : balance\n","10L",12,null,null,0]
[null,null,2.8,"Mixture of Nitrogen and Nitric Oxide","N2 & NO","NO: 70ppm\nN2: Balance\n","10L",12,null,null,0]
[null,null,2.9,"Mixture of Nitrogen and  Nitric Oxide","N2 & NO","NO :800 ppm \nN2 : balance\n","50L",1,null,null,0]
[null,null,2.1,"Mixture of Nitrogen and Suplhur Dioxide","N2 & SO2","SO2 :600 ppm\nN2: Balance\n","10L",12,null,null,0]
[null,null,2.11,"Mixture of Nitrogen and Suplhur Dioxide","N2 &  SO2","SO2 :2000 ppm\nN2: Balance\n","10L",12,null,null,0]
[null,null,2.12,"Mixture of Nitrogen, Carbon Dioxide and Hydrogen ","N2, CO2 & H2","CO2: 5%\nH2: 10%\nN2: Balance\n","10L",12,null,null,0]
[null,null,2.13,"Mixture of Nitrogen, Carbon Dioxide, Nitric Oxide and Sulphur Dioxide ","N2, CO2, NO & SO2","SO2:800ppm \nNO:400ppm\nC02: 13.5%\nN2: Balance \n","10L",12,null,null,0]
[null,null,2.14,"Mixture of Nitrogen, Oxygen, Carbon DioxIde and Carbon Monoxide","N2, O2, CO2 &CO","O2 :4%\nCO2:5000ppm, CO :500ppm\nN2 : Balance\n","10L",12,null,null,0]
[null,null,2.15,"Mixture of Nitrogen, Oxygen, Carbon Dioxide and Carbon Monoxide","N2, O2, CO2 & CO","O2: 3.5%\nCO2: 15%\nCO: 800 ppm\nN2: Balance \n","10L",12,null,null,0]
[null,null,2.16,"Nitrogen VGL Liquid High Pressure",null,"N2: 99.5%","M/T",36,null,null,0]
[null,null,2.17,"Mixture of Nitrogen and Sulphur Dioxide","N2 & SO2","SO2: 70 ppm\nN2: Balance \n","10L",10,null,null,0]
[null,null,2.18,"Mixture of Nitrogen, Sulphur Dioxide,Oxygen and Carbon Dioxide ",null,"SO2: 800 ppm\nO2:6%\nCO2:13.5%\nN2:Balance\n","10L",12,null,null,0]
[null,null,2.19,"Synethic Air","N2 & O2","O2: 19-23%\nN2:Balance\nCnHm ≤4ppm\nH2O ≤4ppm\n","10L",12,null,null,0]
[null,null,{"v":2.2,"d":"2.20"},"Zero Air","N2 & O2","O2: 19-23% and 3% RAT\nN2:Balance\nCnHm ≤0.5ppm and 3%RAT\n","10L",12,null,null,0]
[null,null,2.21,"Nitogen(Lasal Alphagaz 1) ","N2","N2:99.95%","50L",2,null,null,0]
[null,null,2.22,"Liquid Nitrogen ","N2","N2:99.95%","M/T",42287,null,null,0]
[null,null,2.23,"Nitrogen 5(Lasal Alphagas 1)","N2","N2:99.99%","50L",50,null,null,0]
[null,null,2.24,"Argon 5.0 Mixture","Ar &CO2&H2O&N2 &O2 &2.0 &CnHm ","Ar>= 99.999%\nCO2 ≤0.5ppm\nH2O≤2.0ppm\nN2 ≤5ppm\nO2 ≤2.0 ppm\nCnHm ≤ 0.5ppm\n","17.8kg",60,null,null,0]
[null,null,2.25,"Argon mix P10","Ar","CH4:10% \nAr : Balance \n","50L",36,null,null,0]
[null,null,2.26,"Argon minitank","Ar",null,null,105,null,null,0]
[null,null,2.27,"Pure Oxygen","O2","O2:99.998%","13.6kg",6620,null,null,0]
[null,null,2.28,"Medical Oxygen ","O2","O2:99.95%","11.8kg",1152,null,null,0]
[null,null,2.29,"Mixture of Oxygen and Nitrogen ","O2 & N2","O2: 20.5% N2: Balance","10L",360,null,null,0]
[null,null,2.3,"Mixture of Oxygen and Nitrogen ","O2 & N2","O2: 0.5% N2: Balance","10L",360,null,null,0]
[null,null,2.31,"Mixture of Oxygen and Nitrogen ","O2 & N2","O2: 3% N2: Balance","10L",360,null,null,0]
[null,null,2.32,"Welding Oxygen",null,null,"10L",7,null,null,0]
[null,null,2.33,"Sulphur Hexaflouride","SF6","SF6≥99.70 % by weight\nAir: 2 g/kg\nCF4: 2400 mg/kg\nH2O: 25 mg/kg\nMineral Oil: 10 mg/kg\nAcidity i.t.o HF: 1 mg/kg\n","63kg",33,null,null,0]
[null,null,2.34,"Sulphur Hexaflouride","SF6",null,"20kg",55,null,null,0]
[null,null,2.35,"Sulphur Hexaflouride","SF6",null,"50kg",98,null,null,0]
[null,null,2.36,"Sulphur Hexaflouride","SF6",null,"9kg",141,null,null,0]
[null,null,2.37,"Special Gas (Mixture of Carbon Monoxide and Carbon Dioxide)",null,"CO :60%\nCO2:40%\n","50kg",96,null,null,0]
[null,null,2.38,"H2S Mix",null,"H2S:70 ppm \" balance N2\"","50L",5,null,null,0]
[null,null,2.39,"Helium",null,"He: 99.999%\nO2 ≤ 2 ppm\nN2 ≤ 5 ppm\nH2O ≤ 2ppm \nCO ≤ 0.5 ppm\nCO2 ≤ 0.5 ppm\n","50L",24,null,null,0]
[null,null,2.4,"Hydrogen (N5)",null,"Hydrogen (N5)\n\nPurity should be \nH2 ≥ 99.999%\nO2 ≤ 3 ppm\nH20 ≤ 5 ppm","0.62kg",19000,null,null,0]
[{"$nulls":3},"Air (Synthetic)","N2+O2","Air: 19 - 23% Oxygen Nitrogen Balance",{"$nulls":4},0]
[{"$nulls":3},"Gas Mixer",null,"H2: 1000 ppm\nCH4: 1000 ppm\nCO: 1000 ppm\nC2H4: 1000 ppm\nC2H2: 1000 ppm\nC3H8: 1000 ppm\nC3H6: 1000 ppm\nC4H10: 1000 ppm\nC4H8: Balance\nSynthetic Air\n",{"$nulls":4},0]
[{"$nulls":3},"Mixed Gas Standard",null,"H2 :1000ppm ± 2% accuracy \nCH4:1000ppm ± 2% accuracy\nCO :1000ppm ± 2% accuracy\nCO2  : 1000ppm ± 2% accuracy\nC2H4:1000ppm ± 2% accuracy\nC2H6:1000ppm ± 2% accuracy\nC2H2:1000ppm ± 2% accuracy\nC3H8:1000ppm ± 2% accuracy\nC3H6:1000ppm ± 2% accuracy\nC4H10:1000ppm ± 2% accuracy\nN2&O2:Balance ",{"$nulls":4},0]
[]
[]
[]
[]
[null,null,"3. PRICING SCHEDULE FOR LIQUEFIED PETROLEUM GAS (LPG)"]
[null,null,"Gas requirements for : 56 Months Contract"]
[]
[null,null,"Item No.","Item Name","Molecular Formula","Purity (% composition of gas components)","Cyl Capacity ","Quantity (Year 1) ","Product price per KG","Cylinder price per KG","Total price per KG","Comments/ Calculation Explanations"]
[null,null,3.1,"Liquid Petroleum ","Propane Butane Mixture",null,"19kg",50,null,null,{"$f":"I92+J92","v":0}]
[null,null,3.2,"Liquid Petroleum ","Propane Butane Mixture",null,"48kg",1325,null,null,{"$f":"I93+J93","v":0}]
[null,null,3.3,"Liquid Petroleum ","Propane Butane Mixture",null,"9kg",50,null,null,0]
[null,null,3.4,"HANDIGAS;CLEAR LIQUID",null,null,"Mini Tank",140000]
[{"$nulls":3},"Liquefied Petroleum Gas prices are regulated by South African Department of Energy, which publishes Maximum Retail Prices on a monthly basis. Suppliers are therefore required to provide a fixed discount/ mark-up (cents per kilogram) per region which they intend to supply. "]

{"sheet":"Komati Volumes","index":1,"n_rows":25,"n_cols":6,"rows_kept":25,"hidden":true}
["Material","Short Description","Full description","Estimate for the next 3years","Tot. usage","Comments"]
[16196,"GAS:CARBON DIOXIDE TECHNICAL;99 PCT","GAS: TYPE: CARBON DIOXIDE TECHNICAL; PURITY: 99 PCT; CONTAINER: CYL 31.3 KG; ","31.3kg","EA","No requirements"]
[17666,"GAS,LP:1122;HANDIGAS;CLEAR LIQUID;BULK","\"GAS, LIQUID PETROLEUM: TYPE: HANDIGAS CONCENTRATION: 50 PCT PROPANE/BUTANE PHYSICAL FORM: CLEAR LIQUID CONTAINER TYPE: BULK CONTAINER CAPACITY: 9000 KG FLAME TEMPERATURE 2850 DEGREES CENTIGRADE",0,"KG","No requirements"]
[157451,"GAS:NITROGEN/OXYGEN;N 99.5; O2 0.5 PCT","GAS: TYPE: NITROGEN/OXYGEN; PURITY: N 99.5; O2 0.5 PCT; CONTAINER: CYL; MIX 2 COMPONENT (S), ",21,"EA"]
[157452,"GAS:NITROGEN/OXYGEN;N 79.5; O2 20.5 PCT","GAS: TYPE: NITROGEN/OXYGEN PURITY: N 79.5 O2 20.5 PCT CONTAINER: CYL MIX 2 COMPONENT (S), PROOF TEST GAS, TO BE USED FOR CALIBRATION PURPOSES, 340-201",21,"EA"]
[174760,"GAS:PROPANE;TECHNICAL;TANK","GAS: TYPE: PROPANE; PURITY: TECHNICAL; CONTAINER: TANK; UMC KG; ","318786 KG","EA"]
[205744,"GAS,ARGON:340462;INSTRUMENT GRADE","GAS, ARGON: TYPE: INSTRUMENT GRADE CONTAINER CAPACITY: 17.4 KG PURITY 99.999PCT(N5.0), CHARGING PRESSURE IS 20000 KPA @20 DEG ","574.2 kg","EA"]
[209962,"GAS:340358;HYDROGEN UHP;99.999 PCT","GAS: TYPE: HYDROGEN UHP PURITY: 99.999 PCT CONTAINER: CYL 10 KG ","10kg","EA","No requirements"]
[213039,"GAS,ACETYLENE:DISSOLVED;CYL;8.6 KG","GAS, ACETYLENE: TYPE: DISSOLVED; CONCENTRATION: ACETYLENE 99 PCT; CONTAINER TYPE: CYL; CONTAINER CAPACITY: 8.6 KG; ",0,"EA","No requirements"]
[213040,"GAS,LP:CYL;48 KG","GAS, LIQUID PETROLEUM: CONTAINER TYPE: CYL CONTAINER CAPACITY: 48 KG PURITY 50/50PCT","32496 kg","EA"]
[213045,"GAS:OXYGEN TECHNICAL;99.5 PCT","GAS: TYPE: OXYGEN TECHNICAL; PURITY: 99.5 PCT; CONTAINER: CYL 13.6 KG","353.6 kg","EA"]
[213046,"GAS:HELIUM;CYL 1.5 KG","GAS: TYPE: HELIUM CONTAINER: CYL 1.5 KG PURITY HIGH ","105 kg","EA"]
[213049,"GAS,NITROGEN:HIGH PURITY;11 KG;CYL;HIGH","GAS, NITROGEN: TYPE: HIGH PURITY; GRADE: HIGH; CONTAINER TYPE: CYL; CONTAINER CAPACITY: 11 KG","3443 kg","EA"]
[213475,"GAS,ARGON:HIGH PRESSURE;16.9 KG;CYL","GAS, ARGON: TYPE: HIGH PRESSURE; GRADE: TECHNICAL; CONTAINER TYPE: CYL; CONTAINER CAPACITY: 16.9 KG","6962.8 kg","EA"]
[215572,"GAS:CARBON DIOXIDE;99.995 PCT;CYL","GAS: TYPE: CARBON DIOXIDE; PURITY: 99.995 PCT; CONTAINER: CYL; TECH DIP TUBE; 12 PACK","90-pallets","EA"]
[215573,"GAS:HYDROGEN;TECHNICAL;CYL","GAS: TYPE: HYDROGEN; PURITY: TECHNICAL; CONTAINER: CYL; 18 PACK","1009-pallets","EA"]
[217601,"GAS:OXYGEN TECHNICAL;99.5 PCT;13.6 KG","GAS: TYPE: OXYGEN TECHNICAL; PURITY: 99.5 PCT; CONTAINER: 13.6 KG","625.6 kg","EA"]
[224748,"CHEMICAL:REFRIDGERATION ;GAS ;CYLINDER","CHEMICAL: TYPE: REFRIDGERATION; FORM: GAS; CONTAINER: CYLINDER; TRADE NAME: CHLORODIFLUAROMETHANE; CAS REGISTRY NUMBER: 75-45-6; GRADE: TECHNICAL, 13.9KG","1251 kg","EA"]
[248223,"GAS,OXYGEN:MEDICAL;100 PCT;7782-44-7;O2","GAS, OXYGEN: TYPE: MEDICAL; CONCENTRATION: 100 PCT; CAS REGISTRATION NUMBER: 7782-44-7; MOLECULAR FORMULA: O2; PHYSICAL FORM: LIQUID GAS; CONTAINER TYPE: CYL; CONTAINER CAPACITY: 0.47 KG","6.58 kg","EA"]
[248224,"GAS,OXYGEN:MEDICAL;100 PCT;7782-44-7;O2","GAS, OXYGEN: TYPE: MEDICAL; CONCENTRATION: 100 PCT; CAS REGISTRATION NUMBER: 7782-44-7; MOLECULAR FORMULA: O2; PHYSICAL FORM: LIQUID GAS; CONTAINER TYPE: CYL; CONTAINER CAPACITY: 1.84 KG; ","23.7 kg","EA"]
[251848,"GAS,OXYGEN:TECHNICAL MCP;99.99 PCT;CYL","GAS, OXYGEN: TYPE: TECHNICAL MCP; CONCENTRATION: 99.99 PCT; CONTAINER TYPE: CYL; CONTAINER CAPACITY: 13.6 KG","272 kg","EA"]
[252969,"GAS:NITRIC OXIDE;N2, 800 PPM;11 KG","GAS: TYPE: NITRIC OXIDE; PURITY: N2, 800 PPM; CONTAINER: 11 KG; MUST BE ACCOMPANIED WITH A CALIBRATION CERTIFICATE STATING THE SERIAL NUMBER AND CALIBRATION INFORMATION, CLEANING SYSTEM, ENGINEER TO DO QUALITY CHECK OF ACCEPTANCE, PURITY MUST BE 800 PPM IN N2",0,"EA"]
[252970,"GAS;CO2,23.2 PCT,11 KG","GAS; TYPE CO2, PURITY 23.2 PCT, CONTAINER 11 KG, MUST BE ACCOMPANIED WITH A CALIBRATION CERTIFICATE STATING THE SERIAL NUMBER AND CA LIBRATION INFORMATION, THE CLEANING SYSTEM ENGINEER TO DO QUALITY CHECK OF ACCEPTANCE, PURITY MUST BE 23.2 % IN N2","11 kg","EA","No requirements"]
[252971,"GAS;SO2,1000 PPM,11 KG","GAS; TYPE SO2, PURITY 1000 PPM, CONTAINER 11 KG, MUST BE ACCOMPANIED WITH A CALIBRATION CERTIFICATE STATING THE SERIAL NUMBER AND CA LIBRATION INFORMATION, THE CLEANING SYSTEM ENGINEER TO DO QUALITY CHECK OF ACCEPTANCE, PURITY MUST BE 1000 PPM IN N2",0,"EA","No requirements"]
[556284,"REFRIGERANT:GAS;R410A","REFRIGERANT: TYPE: GAS; RATING: R410A; CONTAINER: CYL DISPOSABLE 11.3 KG; NON FLAMMABLE; NON TOXIC; ODOUR: SLIGHT ETHEREAL; CLASSIFICATIONS: UN NUMBER: 1078; HAZCHEM; BULK ONLY: 2C; COLOURLESS LIQUEFIED","226 kg","EA"]

{"sheet":"Lethabo volumes","index":2,"n_rows":13,"n_cols":9,"rows_kept":13,"hidden":true,"merged":[[3,0,3,8]]}
["Sifiso Maringa "]
["Thomas Conradie"]
[]
["Lethabo Yearly Gas Consumption estimate"]
["Material","    Last 3 months usage","Yearly Consumption",null,"3 Year Volume requirements estimation","  Tot. usage val./unit","  Estimated yearly cost",null,"Last cons."]
["0016182 GAS:PROPANE/BUTANE;50 PCT;CYL 9 KG",4,{"$f":"B6*4","v":16},"EA",{"$f":"C6*3","v":48},629.9,{"$f":"C6*F6","v":{"v":10078.4,"d":"10078.40"}},"ZAR","02.08.2017"]
["0213049 GAS,NITROGEN:HIGH PURITY;11 KG;CYL;HIGH",25,{"$f":"B7*4+48","v":148},"EA",{"$f":"C7*3","v":444},3003,{"v":444444,"d":"444444.00"},"ZAR","26.07.2017"]
["0213051 GAS:HYDROGEN;TECHNICAL GRADE",162,{"$f":"B8*4","v":648},"EA",1944,11869.74,7691591.52,"ZAR","07.08.2017"]
["0215573 GAS:HYDROGEN;TECHNICAL;CYL  (18 Pack)",14,56,"EA",168,21144.76,{"v":1184106.5599999998,"d":"1184106.56"},"ZAR","07.08.2017"]
["0217601 GAS:OXYGEN TECHNICAL;99.5 PCT;13.6 KG",101,{"$f":"B10*4+50","v":454},"EA",1362,6483.19,2943368.26,"ZAR","11.08.2017"]
["0590330 GAS,NITROGEN:PURE;148.8 KG;100 PCT  (12 Pack)",5,20,"EA",60,6871.68,{"v":137433.6,"d":"137433.60"},"ZAR","19.07.2017"]
["Argon (Ar)",27,108,"EA",324,null,{"v":0,"d":"0.00"}]
["Total",311,1244,"EA",3732,"     50.002,27",{"$f":"SUM(G6:G12)","v":12411022.34},"ZAR"]

{"sheet":"Hendrina volumes","index":3,"n_rows":21,"n_cols":4,"rows_kept":21,"hidden":true,"merged":[[1,0,2,0],[1,1,2,1],[1,2,2,2]]}
["Jannie Kotze"]
["Stock","Description","Consumption","expected consumption"]
[{"$nulls":3},"for 3"]
["No",null,"last year","years"]
[213039,"ACETYLENE",155,465]
[213042,"CARBON DIOXIDE",885,2655]
[213047,"ARGON",20,60]
[217601,"OXYGEN",350,1050]
[213046,"BIG HELIUM (1.5KG)",15,45]
[213049,"NITROGEN",350,1050]
[213051,"HYDROGEN",6626,10000]
[213044,"ARGOSHIELD (GREEN BOTTLES)COOGAR 84",10,30]
[184017,"SMALL HELIUM 0.18KG 99.999%",10,30]
[16182,"9KG LPG",10,30]
[213041,"19KG LPG",5,15]
[213040,"48KG LPG",15,45]
[17669,"1.84 KG MEDICAL OXYGEN",35,105]
[17681,"0.47 kg MEDICAL OXYGEN",30,90]
[]
["Hydrogen was used when the new Hydrogen plant was being commissioned."]
["H2 cylinders will only be used once hydrogen plant is down on breakdown or maintenance"]

{"sheet":"Duvha response","index":4,"n_rows":2,"n_cols":1,"rows_kept":2,"hidden":true}
["Maradona Malesa"]
["No Information provided stations requested  Material numbers for the new material on the new spec to confirm correctness of material"]

{"sheet":"Kendal ","index":5,"n_rows":1,"n_cols":1,"rows_kept":1,"hidden":true}
["Carol Lephoto : None"]

{"sheet":"Kusile","index":6,"n_rows":92,"n_cols":9,"rows_kept":92,"hidden":true,"merged":[[1,2,2,8],[3,2,3,8],[29,3,29,8],[30,3,30,8],[31,3,31,8],[32,3,32,8],[33,3,33,8],[35,2,35,8],[36,2,36,8],[76,3,76,8],[77,3,77,8],[78,3,78,8],[79,3,79,8],[80,3,80,8],[82,2,82,8],[83,2,83,8],[87,3,88,8],[89,3,89,8],[90,3,90,8],[91,3,91,8]]}
["Sindiso Ndlovu"]
[null,null,"1. PRICING SCHEDULE FOR INDUSTRIAL GASES AND MEDICAL GASES"]
[]
[null,null,"Gas requirements for : Kusile Power Station, Mpumalanga"]
[{"$nulls":6},"Quantity (Year 1) ","Quantity (Year 2) ","Quantity (Year 3) "]
[null,null,"Item No.","Item Name","Molecular Formula","Purity (% composition of gas components)","Volume in kg","Volume in kg","Volume in kg"]
[null,null,1.1,"Air ","N2+O2","Air: 19-23% Oxygen, Balance - Nitrogen"]
[null,null,1.2,"Air, Sythetic","N2+O2","Air: 21-22.5% Oxygen, Balance - Nitrogen"]
[null,null,1.3,"Acetylene","C2H2",{"v":0.98,"d":"98.00%"},80,80,80]
[null,null,1.4,"Ammonia ","NH3",{"v":0.997,"d":"99.70%"}]
[null,null,1.5,"Argon","Ar",{"v":0.9999,"d":"99.99%"},130,130,130]
[null,null,1.6,"Carbon Dioxide Liquefied Gas","CO2",{"v":0.99,"d":"99.00%"},2673.08,5346.16,8019.24]
[null,null,1.7,"Carbon Dioxide","CO2",{"v":0.99,"d":"99.00%"}]
[null,null,1.8,"Carbon Dioxide and Carbon Monoxide Mixture","CO2+CO","40% CO2 and 60% CO",24,24,24]
[null,null,1.9,"Carbon Monoxide: Nitrogen","CO+N2"]
[null,null,{"v":1.1,"d":"1.10"},"Chlorine","CI",{"v":0.995,"d":"99.50%"}]
[null,null,1.11,"Helium ","He",{"v":0.99,"d":"99.00%"}]
[null,null,1.12,"Hydrogen","H2",{"v":0.995,"d":"99.50%"},1373.04,2291.4,3207.96]
[null,null,1.13,"Nitric Oxide","NO","Supplier to Specify"]
[null,null,1.14,"Nitrogen","N2 ",{"v":0.995,"d":"99.50%"},24,24,24]
[null,null,1.15,"Nitrogen ","N2",{"v":0.9999,"d":"99.99%"},168,168,168]
[null,null,1.16,"Nitrogen:Carbon Monoxide","N2+CO","Supplier to Specify"]
[null,null,1.17,"Nitrogen Tank","N2",{"v":0.995,"d":"99.50%"}]
[null,null,1.18,"Nitrogen:Sulphur Dioxide","N2+SO2","Supplier to Specify"]
[null,null,1.19,"Oxygen ","O2",{"v":0.995,"d":"99.50%"}]
[null,null,1.2,"Oxygen-Medical","O2",{"v":0.995,"d":"99.50%"}]
[null,null,1.21,"Sulphur Dioxide: Nitrogen","SO2+N2","Supplier to Specify"]
[null,null,1.22,"Mixture of Nitrogen, Nitric Oxide and Carbon Monoxide","N2, NO and CO","NO: 140ppm\nCO: 100ppm\nN2: Balance\n"]
[null,null,1.23,"Pyroshield ",null,"Ar: 50%\n N2:50%\n"]
[{"$nulls":3},"NB! All delivered gas prices must be inclusive of transport and cylinder rental costs per kilogram "]
[{"$nulls":3},"Eskom will not accept cylinder rental costs separate from the delivered gas price"]
[{"$nulls":3},"Contract period is 3 years and therefore Prices without CPA will not be accepted "]
[{"$nulls":3},"If supplier intends to quote fixed and firm prices for 3 years, this is to be clearly specified in your offer"]
[{"$nulls":3},"All prices are to be quoted in kg only and not in cylinder"]
[]
[null,null,"2. PRICING SCHEDULE FOR SPECIAL GASES"]
[null,null,"Gas requirements for : Please type in Name of Power Station and Province here"]
[{"$nulls":6},"Quantity (Year 1) ","Quantity (Year 2) ","Quantity (Year 3) "]
[null,null,"Item No.","Item Name","Molecular Formula","Purity (% composition of gas components)","Volume in kg","Volume in kg","Volume in kg"]
[null,null,2.1,"Mixture of Nitrogen and Carbon Monoxide","N2 & CO","CO: 500 ppm\n N2:Balance\n"]
[null,null,2.2,"Mixture of Nitrogen and Carbon Monoxide","N2 & CO","CO: 2000 ppm \nN2 :Balance\n"]
[null,null,2.3,"Mixture of Nitrogen and Carbon Monoxide","N2 & CO","CO2: 25%\nN2: Balance\n"]
[null,null,2.4,"Mixture of Nitrogen, Oxygen, Nitrogen Monoxide and Sulphur Dioxide","N2, O2, NO, & SO2","O2 :4.5%\nNO: 4000ppm,  SO2: 6000ppm \nN2: Balance\n"]
[null,null,2.5,"Mixture of Nitrogen and Dinitrogen Oxide (Nitrous Oxide)","N2 & N2O","N2O:500 ppm \nN2: Balance\n"]
[null,null,2.6,"Mixture of Nitrogen and Nitric Oxide","N2 & NO","NO :4000 ppm\nN2 :balance\n"]
[null,null,2.7,"Mixture of Nitrogen and Nitric Oxide","N2 & NO","NO :500 ppm \nN2 : balance\n"]
[null,null,2.8,"Mixture of Nitrogen and Nitric Oxide","N2 & NO","NO: 70ppm\nN2: Balance\n"]
[null,null,2.9,"Mixture of Nitrogen and  Nitric Oxide","N2 & NO","NO :800 ppm \nN2 : balance\n"]
[null,null,2.1,"Mixture of Nitrogen and Suplhur Dioxide","N2 & SO2","SO2 :600 ppm\nN2: Balance\n"]
[null,null,2.11,"Mixture of Nitrogen and Suplhur Dioxide","N2 &  SO2","SO2 :2000 ppm\nN2: Balance\n"]
[null,null,2.12,"Mixture of Nitrogen, Carbon Dioxide and Hydrogen ","N2, CO2 & H2","CO2: 5%\nH2: 10%\nN2: Balance\n"]
[null,null,2.13,"Mixture of Nitrogen, Carbon Dioxide, Nitric Oxide and Sulphur Dioxide ","N2, CO2, NO & SO2","SO2:800ppm \nNO:400ppm\nC02: 13.5%\nN2: Balance \n"]
[null,null,2.14,"Mixture of Nitrogen, Oxygen, Carbon DioxIde and Carbon Monoxide","N2, O2, CO2 &CO","O2 :4%\nCO2:5000ppm, CO :500ppm\nN2 : Balance\n"]
[null,null,2.15,"Mixture of Nitrogen, Oxygen, Carbon Dioxide and Carbon Monoxide","N2, O2, CO2 & CO","O2: 3.5%\nCO2: 15%\nCO: 800 ppm\nN2: Balance \n"]
[null,null,2.16,"Nitrogen VGL Liquid High Pressure",null,"N2: 99.5%"]
[null,null,2.17,"Mixture of Nitrogen and Sulphur Dioxide","N2 & SO2","SO2: 70 ppm\nN2: Balance \n"]
[null,null,2.18,"Mixture of Nitrogen, Sulphur Dioxide,Oxygen and Carbon Dioxide ",null,"SO2: 800 ppm\nO2:6%\nCO2:13.5%\nN2:Balance\n"]
[null,null,2.19,"Synethic Air","N2 & O2","O2: 19-23%\nN2:Balance\nCnHm ≤4ppm\nH2O ≤4ppm\n"]
[null,null,{"v":2.2,"d":"2.20"},"Zero Air","N2 & O2","O2: 19-23% and 3% RAT\nN2:Balance\nCnHm ≤0.5ppm and 3%RAT\n"]
[null,null,2.21,"Nitogen(Lasal Alphagaz 1) ","N2","N2:99.95%"]
[null,null,2.22,"Liquid Nitrogen ","N2"]
[null,null,2.23,"Nitrogen 5(Lasal Alphagas 1)","N2","N2:99.99%"]
[null,null,2.24,"Argon 5.0 Mixture","Ar &CO2&H2O&N2 &O2 &2.0 &CnHm ","Ar>= 99.999%\nCO2 ≤0.5ppm\nH2O≤2.0ppm\nN2 ≤5ppm\nO2 ≤2.0 ppm\nCnHm ≤ 0.5ppm\n"]
[null,null,2.25,"Argon mix P10","Ar","CH4:10% \nAr : Balance \n",24,24,24]
[null,null,2.26,"Argon minitank","Ar"]
[null,null,2.27,"Pure Oxygen","O2","O2:99.998%"]
[null,null,2.28,"Medical Oxygen ","O2","O2:99.95%",1142,2045,2947]
[null,null,2.29,"Welding Oxygen"]
[null,null,{"v":2.3,"d":"2.30"},"Sulphur Hexaflouride","SF6","SF6≥99.70 % by weight\nAir: 2 g/kg\nCF4: 2400 mg/kg\nH2O: 25 mg/kg\nMineral Oil: 10 mg/kg\nAcidity i.t.o HF: 1 mg/kg\n"]
[null,null,2.31,"Special Gas (Mixture of Carbon Monoxide and Carbon Dioxide)",null,"CO :60%\nCO2:40%\n"]
[null,null,2.32,"H2S Mix",null,"H2S:70 ppm"]
[null,null,2.33,"Helium",null,"He: 99.999%\nO2 ≤ 2 ppm\nN2 ≤ 5 ppm\nH2O ≤ 2ppm \nCO ≤ 0.5 ppm\nCO2 ≤ 0.5 ppm\n",24,24,24]
[null,null,2.34,"Hydrogen (N5)",null,"H2≥99.999%\nO2 ≤ 3 ppm\nH2O ≤ 5 ppm\n"]
[null,null,2.35,"Air(Synthetic)","N2+O2","Air :19- 23 % Oxygen\nNitrogen- Balance\n"]
[null,null,2.36,"Gas Mixer",null,"H2 :1000ppm\nCH4 : 1000ppm\nCO :1000ppm\nCO2  : 1000ppm\nC2H4::1000ppm\nC2H2:1000ppm\nC3H8:1000ppm\nC3H6:1000ppm\nC4H10:1000ppm\nC4H8: Balance \nSynthetic air:\n"]
[null,null,2.37,"Mixed Gas Standard ",null,"H2 :1000ppm ± 2% accuracy \nCH4:1000ppm ± 2% accuracy\nCO :1000ppm ± 2% accuracy\nCO2  : 1000ppm ± 2% accuracy\nC2H4:1000ppm ± 2% accuracy\nC2H6:1000ppm ± 2% accuracy\nC2H2:1000ppm ± 2% accuracy\nC3H8:1000ppm ± 2% accuracy\nC3H6:1000ppm ± 2% accuracy\nC4H10:1000ppm ± 2% accuracy\nN2&O2:Balance \n"]
[{"$nulls":3},"All delivered gas prices must be inclusive of transport and cylinder rental costs per kilogram. "]
[{"$nulls":3},"Eskom will not accept cylinder rental costs separate from the delivered gas price"]
[{"$nulls":3},"Contract period is 3 years and therefore Prices without CPA will not be accepted "]
[{"$nulls":3},"If supplier intends to quote fixed and firm prices for 3 years, this is to be clearly stated in the offer"]
[{"$nulls":3},"All prices are to be quoted in kg only and not in cylinder"]
[]
[null,null,"3. PRICING SCHEDULE FOR LIQUEFIED PETROLEUM GAS (LPG)"]
[null,null,"Gas requirements for : Please type in Name of Power Station and Province here"]
[{"$nulls":6},"Quantity (Year 1) ","Quantity (Year 2) ","Quantity (Year 3) "]
[null,null,"Item No.","Item Name","Molecular Formula","Purity (% composition of gas components)","Volume in kg","Volume in kg","Volume in kg"]
[null,null,3.1,"Liquid Petroleum ","Propane Butane Mixture"]
[{"$nulls":3},"Liquefied Petroleum Gas prices are regulated by South African Department of Energy, which publishes Maximum Retail Prices on a monthly basis. Suppliers are therefore required to provide a fixed discount (cents per kilogram) per region which they intend to supply. "]
[]
[{"$nulls":3},"All delivered gas prices must be inclusive of transport and cylinder rental costs per kilogram. "]
[{"$nulls":3},"Eskom will not accept cylinder rental costs separate from the delivered gas price"]
[{"$nulls":3},"All prices are to be quoted in kg only and not in cylinder"]

{"sheet":"Arnot","index":7,"n_rows":4,"n_cols":1,"rows_kept":4,"hidden":true}
["Sydney Magagula"]
["Shamiel Jappie"]
[]
["No requirements submitted from Sydney"]

{"sheet":"Medupi","index":8,"n_rows":2,"n_cols":1,"rows_kept":2,"hidden":true}
["Molefi Manamela "]
["Johan Prinsloo"]

{"sheet":"Matla","index":9,"n_rows":1,"n_cols":1,"rows_kept":1,"hidden":true}
["No Requirements"]